[Event "Early-Titled-Tuesday-Blitz-February-06-2024"]
[Site "Chess.com"]
[Date "2024.02.06"]
[Round "8"]
[White "BallottiLuca"]
[Black "Flawless_Fighter"]
[Result "0-1"]
[WhiteElo "2357"]
[BlackElo "2714"]
[TimeControl "180+1"]
[EndTime "9:26:58 PST"]
[Termination "Flawless_Fighter won by resignation"]

1. d4 {[%clk 0:03:00.9]} 1... Nf6 {[%clk 0:02:59.4]} 2. c4 {[%clk 0:03:00.1]}
2... e6 {[%clk 0:02:59.7]} 3. Nf3 {[%clk 0:02:59.1]} 3... d5 {[%clk 0:03:00.1]}
4. Nc3 {[%clk 0:02:56.5]} 4... c5 {[%clk 0:02:59.7]} 5. cxd5 {[%clk 0:02:54.6]}
5... Nxd5 {[%clk 0:03:00.6]} 6. e4 {[%clk 0:02:52.4]} 6... Nxc3 {[%clk
0:03:00.9]} 7. bxc3 {[%clk 0:02:53.3]} 7... cxd4 {[%clk 0:03:01.6]} 8. cxd4
{[%clk 0:02:49.5]} 8... Bb4+ {[%clk 0:03:01.8]} 9. Bd2 {[%clk 0:02:49.1]} 9...
Bxd2+ {[%clk 0:03:02.6]} 10. Qxd2 {[%clk 0:02:48.5]} 10... O-O {[%clk
0:03:03.5]} 11. Bc4 {[%clk 0:02:46.8]} 11... Nd7 {[%clk 0:03:03.9]} 12. O-O
{[%clk 0:02:45.1]} 12... b6 {[%clk 0:03:04.5]} 13. Rad1 {[%clk 0:02:40.4]} 13...
Bb7 {[%clk 0:03:04.4]} 14. Rfe1 {[%clk 0:02:39.6]} 14... Nf6 {[%clk 0:03:04.9]}
15. Qf4 {[%clk 0:02:37.1]} 15... Rc8 {[%clk 0:03:03.8]} 16. Bd3 {[%clk
0:02:36.3]} 16... Qc7 {[%clk 0:03:03.5]} 17. Qh4 {[%clk 0:02:34]} 17... h6
{[%clk 0:03:03.7]} 18. Re3 {[%clk 0:02:31.1]} 18... Rfd8 {[%clk 0:03:03.4]} 19.
g4 {[%clk 0:02:08.3]} 19... Qf4 {[%clk 0:02:58.9]} 20. Qg3 {[%clk 0:00:59.6]}
20... Qxg4 {[%clk 0:02:56.9]} 21. Qxg4 {[%clk 0:00:54]} 21... Nxg4 {[%clk
0:02:56.3]} 22. Re2 {[%clk 0:00:52.5]} 22... Nf6 {[%clk 0:02:53]} 23. Bb1 {[%clk
0:00:46.9]} 23... Kf8 {[%clk 0:02:50.6]} 24. Ne5 {[%clk 0:00:46.8]} 24... Nd7
{[%clk 0:02:44.4]} 25. Nxd7+ {[%clk 0:00:41.3]} 25... Rxd7 {[%clk 0:02:44.6]}
26. f3 {[%clk 0:00:42.2]} 26... Rc4 {[%clk 0:02:43.4]} 27. Red2 {[%clk 0:00:42]}
27... Ke7 {[%clk 0:02:41.6]} 28. Kf2 {[%clk 0:00:41.8]} 28... g5 {[%clk
0:02:41]} 29. Bc2 {[%clk 0:00:32.6]} 29... b5 {[%clk 0:02:38.3]} 30. Bb3 {[%clk
0:00:32.7]} 30... Rc3 {[%clk 0:02:36.1]} 31. Rd3 {[%clk 0:00:28.8]} 31... Rxd3
{[%clk 0:02:35.7]} 32. Rxd3 {[%clk 0:00:29.7]} 32... a5 {[%clk 0:02:35.8]} 33.
Ke3 {[%clk 0:00:27.7]} 33... Rc7 {[%clk 0:02:31.2]} 34. Rd1 {[%clk 0:00:26.8]}
34... a4 {[%clk 0:02:29.5]} 35. d5 {[%clk 0:00:22.2]} 35... Rc8 {[%clk 0:02:18]}
36. dxe6 {[%clk 0:00:07.1]} 36... fxe6 {[%clk 0:02:15.9]} 37. Bxe6 {[%clk
0:00:05.6]} 37... Kxe6 {[%clk 0:02:16.2]} 38. f4 {[%clk 0:00:06.3]} 38... Rc3+
{[%clk 0:02:15.1]} 39. Kd4 {[%clk 0:00:06.8]} 39... Rc4+ {[%clk 0:02:15.4]} 40.
Kd3 {[%clk 0:00:06.8]} 40... Bxe4+ {[%clk 0:02:15]} 41. Ke3 {[%clk 0:00:07.2]}
41... gxf4+ {[%clk 0:02:15.2]} 42. Kf2 {[%clk 0:00:05.6]} 42... Rc2+ {[%clk
0:02:15]} 43. Kg1 {[%clk 0:00:05.8]} 43... Rxa2 {[%clk 0:02:14.7]} 44. Re1
{[%clk 0:00:05.8]} 44... Kf5 {[%clk 0:02:15]} 45. h4 {[%clk 0:00:06.5]} 45... b4
{[%clk 0:02:13.3]} 46. h5 {[%clk 0:00:06.5]} 46... b3 {[%clk 0:02:13.5]} 47. Rc1
{[%clk 0:00:05.4]} 47... Rc2 {[%clk 0:02:13.1]} 48. Rd1 {[%clk 0:00:04.2]} 48...
b2 {[%clk 0:02:13.4]} 0-1

[Event "Early-Titled-Tuesday-Blitz-February-06-2024"]
[Site "Chess.com"]
[Date "2024.02.06"]
[Round "8"]
[White "kibromNNN"]
[Black "kai_nov"]
[Result "0-1"]
[WhiteElo "1788"]
[BlackElo "2295"]
[TimeControl "180+1"]
[EndTime "9:27:00 PST"]
[Termination "kai_nov won by resignation"]

1. d4 {[%clk 0:03:00.6]} 1... d5 {[%clk 0:02:57.2]} 2. c4 {[%clk 0:02:59.8]}
2... e6 {[%clk 0:02:56.9]} 3. Nc3 {[%clk 0:02:58.8]} 3... Be7 {[%clk 0:02:54.7]}
4. Nf3 {[%clk 0:02:58]} 4... Nf6 {[%clk 0:02:50.7]} 5. Bf4 {[%clk 0:02:56.2]}
5... O-O {[%clk 0:02:48.8]} 6. e3 {[%clk 0:02:55.6]} 6... c5 {[%clk 0:02:47.8]}
7. cxd5 {[%clk 0:02:53]} 7... Nxd5 {[%clk 0:02:46.9]} 8. Nxd5 {[%clk 0:02:52.4]}
8... exd5 {[%clk 0:02:46.5]} 9. dxc5 {[%clk 0:02:47]} 9... Bxc5 {[%clk
0:02:42.5]} 10. Be2 {[%clk 0:02:46.1]} 10... Bb4+ {[%clk 0:02:35.9]} 11. Kf1
{[%clk 0:02:42]} 11... Nc6 {[%clk 0:02:34.5]} 12. a3 {[%clk 0:02:40.5]} 12...
Be7 {[%clk 0:02:31.3]} 13. h3 {[%clk 0:02:30.8]} 13... Be6 {[%clk 0:02:30.8]}
14. Rc1 {[%clk 0:02:29.4]} 14... Rc8 {[%clk 0:02:28.8]} 15. Bd3 {[%clk
0:02:21.2]} 15... Bf6 {[%clk 0:02:27]} 16. Qd2 {[%clk 0:02:10.8]} 16... Qb6
{[%clk 0:02:22.2]} 17. b4 {[%clk 0:01:54.4]} 17... a5 {[%clk 0:02:19]} 18. Bd6
{[%clk 0:01:45.8]} 18... Rfd8 {[%clk 0:02:16.6]} 19. Bc5 {[%clk 0:01:42.4]}
19... Qc7 {[%clk 0:02:14.7]} 20. b5 {[%clk 0:01:37.8]} 20... Nb8 {[%clk
0:02:06.4]} 21. a4 {[%clk 0:01:32.8]} 21... b6 {[%clk 0:01:59.2]} 22. Ba3 {[%clk
0:01:30.6]} 22... Qb7 {[%clk 0:01:57.2]} 23. Ke2 {[%clk 0:01:29]} 23... Nd7
{[%clk 0:01:55.8]} 24. Rhd1 {[%clk 0:01:27.2]} 24... Nc5 {[%clk 0:01:34]} 25.
Bc2 {[%clk 0:01:21.8]} 25... d4 {[%clk 0:01:23.2]} 26. Kf1 {[%clk 0:01:17.9]}
26... d3 {[%clk 0:01:06.6]} 27. Bb1 {[%clk 0:01:13.4]} 27... Nb3 {[%clk
0:01:03.7]} 28. Qe1 {[%clk 0:01:03.8]} 28... Nxc1 {[%clk 0:00:55.9]} 29. Bxc1
{[%clk 0:01:02.2]} 29... Bb3 {[%clk 0:00:49.5]} 30. Rxd3 {[%clk 0:00:59.5]}
30... Bc4 {[%clk 0:00:47.8]} 31. Kg1 {[%clk 0:00:52.9]} 0-1

[Event "Early-Titled-Tuesday-Blitz-February-06-2024"]
[Site "Chess.com"]
[Date "2024.02.06"]
[Round "8"]
[White "Muslim_player_05"]
[Black "JiiHart"]
[Result "1-0"]
[WhiteElo "2476"]
[BlackElo "2148"]
[TimeControl "180+1"]
[EndTime "9:27:00 PST"]
[Termination "Muslim_player_05 won by resignation"]

1. d4 {[%clk 0:03:00.9]} 1... d5 {[%clk 0:02:58.9]} 2. c4 {[%clk 0:02:58.4]}
2... c5 {[%clk 0:02:58.8]} 3. cxd5 {[%clk 0:02:52.8]} 3... Qxd5 {[%clk
0:02:56.3]} 4. Nf3 {[%clk 0:02:52.1]} 4... cxd4 {[%clk 0:02:55.5]} 5. Nc3 {[%clk
0:02:51.7]} 5... Qa5 {[%clk 0:02:54.7]} 6. Nxd4 {[%clk 0:02:48.2]} 6... a6
{[%clk 0:02:41.6]} 7. Nb3 {[%clk 0:02:31.8]} 7... Qh5 {[%clk 0:02:29.7]} 8. Nd5
{[%clk 0:02:27.9]} 8... Qxd5 {[%clk 0:01:52.6]} 9. Qxd5 {[%clk 0:02:26.3]} 9...
Nf6 {[%clk 0:01:53.5]} 10. Qc4 {[%clk 0:02:15.6]} 10... Be6 {[%clk 0:01:49.7]}
11. Qc7 {[%clk 0:02:14.8]} 11... Nbd7 {[%clk 0:01:38.4]} 12. Bd2 {[%clk
0:02:06.7]} 12... g6 {[%clk 0:01:32.5]} 13. Rc1 {[%clk 0:02:05.4]} 13... Rd8
{[%clk 0:00:44.5]} 14. Na5 {[%clk 0:01:54.9]} 14... Nd5 {[%clk 0:00:34.1]} 15.
Qc8 {[%clk 0:01:54.4]} 15... N7b6 {[%clk 0:00:24.5]} 16. Qxb7 {[%clk 0:01:49.3]}
16... Bg7 {[%clk 0:00:20.3]} 17. e4 {[%clk 0:01:42.6]} 17... O-O {[%clk
0:00:18.6]} 18. exd5 {[%clk 0:01:42.2]} 18... Nxd5 {[%clk 0:00:19.1]} 19. Bc4
{[%clk 0:01:40.3]} 19... Rb8 {[%clk 0:00:17.4]} 20. Bxd5 {[%clk 0:01:35.9]}
20... Rxb7 {[%clk 0:00:17.2]} 21. Bxb7 {[%clk 0:01:36.7]} 21... Bxb2 {[%clk
0:00:16.8]} 22. Rc7 {[%clk 0:01:36.6]} 22... Be5 {[%clk 0:00:16]} 23. Rc1 {[%clk
0:01:29.6]} 23... Rd8 {[%clk 0:00:16.8]} 24. Nc4 {[%clk 0:01:21.8]} 24... Bg7
{[%clk 0:00:13.6]} 25. Be3 {[%clk 0:01:15.6]} 25... Bxc4 {[%clk 0:00:13.2]} 26.
Rxc4 {[%clk 0:01:15.1]} 26... Rb8 {[%clk 0:00:13.2]} 27. Rc8+ {[%clk 0:01:14.9]}
27... Rxc8 {[%clk 0:00:13.1]} 28. Bxc8 {[%clk 0:01:15.8]} 28... Bc3+ {[%clk
0:00:13.1]} 29. Ke2 {[%clk 0:01:16.2]} 29... a5 {[%clk 0:00:14]} 30. Rd1 {[%clk
0:01:15.8]} 1-0

[Event "Early-Titled-Tuesday-Blitz-February-06-2024"]
[Site "Chess.com"]
[Date "2024.02.06"]
[Round "8"]
[White "Kunalm64"]
[Black "GrumbleBruno"]
[Result "0-1"]
[WhiteElo "2552"]
[BlackElo "2478"]
[TimeControl "180+1"]
[EndTime "9:27:04 PST"]
[Termination "GrumbleBruno won by resignation"]

1. e4 {[%clk 0:03:00.9]} 1... e5 {[%clk 0:03:00.2]} 2. Nf3 {[%clk 0:03:00.3]}
2... d5 {[%clk 0:03:00.5]} 3. exd5 {[%clk 0:02:57.5]} 3... e4 {[%clk 0:03:00.3]}
4. Qe2 {[%clk 0:02:56.4]} 4... Nf6 {[%clk 0:03:00.4]} 5. Nc3 {[%clk 0:02:52.8]}
5... Be7 {[%clk 0:03:00.4]} 6. Nxe4 {[%clk 0:02:51.8]} 6... Nxd5 {[%clk
0:03:00.8]} 7. Nc3 {[%clk 0:02:24]} 7... Nxc3 {[%clk 0:01:56.9]} 8. dxc3 {[%clk
0:02:22.1]} 8... O-O {[%clk 0:01:55.6]} 9. Bd2 {[%clk 0:02:20.5]} 9... Re8
{[%clk 0:01:46.4]} 10. O-O-O {[%clk 0:02:19.6]} 10... Bd6 {[%clk 0:01:36.4]} 11.
Qd3 {[%clk 0:02:16.9]} 11... Nc6 {[%clk 0:01:28]} 12. Bg5 {[%clk 0:02:02.8]}
12... f6 {[%clk 0:01:19.6]} 13. Be3 {[%clk 0:01:53.7]} 13... Qe7 {[%clk
0:01:03.9]} 14. Qb5 {[%clk 0:01:33.2]} 14... a6 {[%clk 0:00:45.7]} 15. Qb3+
{[%clk 0:01:32.4]} 15... Be6 {[%clk 0:00:42.9]} 16. Bc4 {[%clk 0:01:31.5]} 16...
Bxc4 {[%clk 0:00:37.1]} 17. Qxc4+ {[%clk 0:01:31.4]} 17... Kh8 {[%clk
0:00:37.8]} 18. Rhe1 {[%clk 0:01:22.9]} 18... Ne5 {[%clk 0:00:34.9]} 19. Nxe5
{[%clk 0:01:21.9]} 19... Qxe5 {[%clk 0:00:34.6]} 20. g3 {[%clk 0:01:18.2]} 20...
Rad8 {[%clk 0:00:32.2]} 21. Bf4 {[%clk 0:01:15.8]} 21... Qxe1 {[%clk 0:00:29.6]}
22. Rxe1 {[%clk 0:01:13.2]} 22... Bxf4+ {[%clk 0:00:25.9]} 23. Re3 {[%clk
0:01:02.8]} 23... Rxe3 {[%clk 0:00:19.9]} 24. b3 {[%clk 0:00:50.4]} 24... Re4+
{[%clk 0:00:19.7]} 0-1

[Event "Early-Titled-Tuesday-Blitz-February-06-2024"]
[Site "Chess.com"]
[Date "2024.02.06"]
[Round "8"]
[White "EsmeraldasAnderson03"]
[Black "arnash_bauyrzhan"]
[Result "1-0"]
[WhiteElo "2405"]
[BlackElo "2258"]
[TimeControl "180+1"]
[EndTime "9:27:06 PST"]
[Termination "EsmeraldasAnderson03 won on time"]

1. d4 {[%clk 0:02:42.1]} 1... d5 {[%clk 0:02:58.4]} 2. c4 {[%clk 0:02:42.3]}
2... e6 {[%clk 0:02:58.6]} 3. cxd5 {[%clk 0:02:42.7]} 3... exd5 {[%clk
0:02:58.4]} 4. Nc3 {[%clk 0:02:42.8]} 4... c6 {[%clk 0:02:58.7]} 5. Nf3 {[%clk
0:02:42.1]} 5... Nf6 {[%clk 0:02:52.3]} 6. Bg5 {[%clk 0:02:42.1]} 6... Be7
{[%clk 0:02:52.7]} 7. e3 {[%clk 0:02:42.2]} 7... Bf5 {[%clk 0:02:51.9]} 8. Bd3
{[%clk 0:02:40.4]} 8... Bxd3 {[%clk 0:02:51.9]} 9. Qxd3 {[%clk 0:02:40.8]} 9...
O-O {[%clk 0:02:50.2]} 10. O-O {[%clk 0:02:38.4]} 10... Nbd7 {[%clk 0:02:50.4]}
11. a3 {[%clk 0:02:35.3]} 11... h6 {[%clk 0:02:50.6]} 12. Bh4 {[%clk 0:02:33.2]}
12... Ne4 {[%clk 0:02:47.4]} 13. Bxe7 {[%clk 0:02:34.1]} 13... Qxe7 {[%clk
0:02:47.6]} 14. Nd2 {[%clk 0:02:33.7]} 14... f5 {[%clk 0:02:43.1]} 15. b4 {[%clk
0:02:31.5]} 15... Rae8 {[%clk 0:02:26.4]} 16. Rab1 {[%clk 0:02:29.7]} 16... Qg5
{[%clk 0:02:07.4]} 17. Nf3 {[%clk 0:02:24.5]} 17... Qg4 {[%clk 0:02:00]} 18. h3
{[%clk 0:02:19.4]} 18... Qh5 {[%clk 0:01:57.6]} 19. b5 {[%clk 0:02:03.4]} 19...
Rf6 {[%clk 0:01:42.4]} 20. bxc6 {[%clk 0:02:00.1]} 20... bxc6 {[%clk 0:01:32.1]}
21. Ne2 {[%clk 0:01:59.6]} 21... Nb6 {[%clk 0:01:26.6]} 22. Nf4 {[%clk
0:01:55.5]} 22... Qf7 {[%clk 0:01:21.1]} 23. Ne5 {[%clk 0:01:56.1]} 23... Qc7
{[%clk 0:01:11.5]} 24. Rfc1 {[%clk 0:01:56.1]} 24... Rxe5 {[%clk 0:01:06.5]} 25.
dxe5 {[%clk 0:01:54.8]} 25... Qxe5 {[%clk 0:01:06.5]} 26. Qd4 {[%clk 0:01:55.4]}
26... Qd6 {[%clk 0:00:58.8]} 27. a4 {[%clk 0:01:54.8]} 27... c5 {[%clk
0:00:38.1]} 28. Qd3 {[%clk 0:01:54.7]} 28... c4 {[%clk 0:00:36.7]} 29. Qd4
{[%clk 0:01:54.2]} 29... Qc6 {[%clk 0:00:12.3]} 30. a5 {[%clk 0:01:53.4]} 30...
Nd7 {[%clk 0:00:07.3]} 31. Qxd5+ {[%clk 0:01:54.1]} 31... Qxd5 {[%clk
0:00:07.1]} 32. Nxd5 {[%clk 0:01:55]} 32... Rd6 {[%clk 0:00:06.5]} 33. Ne7+
{[%clk 0:01:53.7]} 33... Kf7 {[%clk 0:00:06.8]} 34. Nxf5 {[%clk 0:01:54.6]}
34... Rd2 {[%clk 0:00:06.7]} 35. f3 {[%clk 0:01:52.3]} 35... Nf2 {[%clk
0:00:05.3]} 36. Rxc4 {[%clk 0:01:50.4]} 36... Nd3 {[%clk 0:00:04.4]} 37. Rd4
{[%clk 0:01:49.6]} 37... N7e5 {[%clk 0:00:03.9]} 38. f4 {[%clk 0:01:46]} 38...
Kf6 {[%clk 0:00:02.3]} 39. Nd6 {[%clk 0:01:43.3]} 1-0

[Event "Early-Titled-Tuesday-Blitz-February-06-2024"]
[Site "Chess.com"]
[Date "2024.02.06"]
[Round "8"]
[White "laskakid"]
[Black "IsaqueGoncalvesSanto"]
[Result "1-0"]
[WhiteElo "2329"]
[BlackElo "1855"]
[TimeControl "180+1"]
[EndTime "9:27:10 PST"]
[Termination "laskakid won on time"]

1. d4 {[%clk 0:03:00.9]} 1... d5 {[%clk 0:02:59.3]} 2. c4 {[%clk 0:03:00.2]}
2... c6 {[%clk 0:02:59.1]} 3. cxd5 {[%clk 0:02:59.5]} 3... cxd5 {[%clk
0:02:58.9]} 4. Bf4 {[%clk 0:03:00.1]} 4... Nf6 {[%clk 0:02:59.1]} 5. e3 {[%clk
0:03:00.4]} 5... Bf5 {[%clk 0:02:59.1]} 6. Qb3 {[%clk 0:02:54.8]} 6... Qa5+
{[%clk 0:02:49.3]} 7. Nc3 {[%clk 0:02:52.4]} 7... b6 {[%clk 0:02:29.6]} 8. Bb5+
{[%clk 0:02:46.1]} 8... Nbd7 {[%clk 0:02:28.9]} 9. Nf3 {[%clk 0:02:35.1]} 9...
a6 {[%clk 0:02:27.2]} 10. Bc6 {[%clk 0:02:31.7]} 10... Rc8 {[%clk 0:02:19.9]}
11. Bxd5 {[%clk 0:02:04.6]} 11... Nxd5 {[%clk 0:01:58.3]} 12. Qxd5 {[%clk
0:02:03.9]} 12... Qxd5 {[%clk 0:01:28.1]} 13. Nxd5 {[%clk 0:02:03.9]} 13... e6
{[%clk 0:01:21.4]} 14. Nc7+ {[%clk 0:01:49.7]} 14... Kd8 {[%clk 0:01:19.5]} 15.
Rc1 {[%clk 0:01:27.8]} 15... Bd3 {[%clk 0:00:41.6]} 16. Kd2 {[%clk 0:01:24.8]}
16... e5 {[%clk 0:00:24]} 17. Nxe5 {[%clk 0:01:14.2]} 17... Nxe5 {[%clk
0:00:15.4]} 18. Bxe5 {[%clk 0:01:11]} 18... Be4 {[%clk 0:00:15.6]} 19. f3 {[%clk
0:01:04.8]} 19... Bb7 {[%clk 0:00:13.5]} 20. a3 {[%clk 0:00:57.3]} 20... f6
{[%clk 0:00:13.2]} 21. Bg3 {[%clk 0:00:56.8]} 21... Be7 {[%clk 0:00:12.2]} 22.
Ne6+ {[%clk 0:00:54.2]} 22... Kd7 {[%clk 0:00:10.7]} 23. Nxg7 {[%clk 0:00:53.8]}
1-0

[Event "Early-Titled-Tuesday-Blitz-February-06-2024"]
[Site "Chess.com"]
[Date "2024.02.06"]
[Round "8"]
[White "Chemim21"]
[Black "Darius321"]
[Result "0-1"]
[WhiteElo "2240"]
[BlackElo "2374"]
[TimeControl "180+1"]
[EndTime "9:27:15 PST"]
[Termination "Darius321 won on time"]

1. d4 {[%clk 0:01:49.3]} 1... d5 {[%clk 0:02:58.1]} 2. Nf3 {[%clk 0:01:47.2]}
2... Nf6 {[%clk 0:02:57]} 3. Bf4 {[%clk 0:01:46.7]} 3... Bf5 {[%clk 0:02:55.4]}
4. e3 {[%clk 0:01:46.6]} 4... e6 {[%clk 0:02:55.7]} 5. c4 {[%clk 0:01:46.4]}
5... Bxb1 {[%clk 0:02:50.8]} 6. Rxb1 {[%clk 0:01:39.2]} 6... Bb4+ {[%clk
0:02:50.6]} 7. Ke2 {[%clk 0:01:39.1]} 7... O-O {[%clk 0:02:40.4]} 8. Qb3 {[%clk
0:01:33.4]} 8... Nc6 {[%clk 0:02:28.4]} 9. a3 {[%clk 0:01:29.4]} 9... dxc4
{[%clk 0:02:27.3]} 10. Qxc4 {[%clk 0:01:28.1]} 10... Bd6 {[%clk 0:02:25.3]} 11.
Bg5 {[%clk 0:01:21.9]} 11... h6 {[%clk 0:02:22.9]} 12. Bh4 {[%clk 0:01:17.5]}
12... e5 {[%clk 0:02:17.4]} 13. d5 {[%clk 0:01:06.6]} 13... Na5 {[%clk
0:01:58.8]} 14. Qc3 {[%clk 0:01:04.6]} 14... b6 {[%clk 0:01:58.3]} 15. b4 {[%clk
0:00:55.5]} 15... Nb7 {[%clk 0:01:57.2]} 16. Bxf6 {[%clk 0:00:55.1]} 16... Qxf6
{[%clk 0:01:55.8]} 17. e4 {[%clk 0:00:55.7]} 17... Qg6 {[%clk 0:01:53]} 18. Qe3
{[%clk 0:00:51.5]} 18... a5 {[%clk 0:01:47.5]} 19. b5 {[%clk 0:00:49.3]} 19...
f5 {[%clk 0:01:42.6]} 20. exf5 {[%clk 0:00:42.7]} 20... Qxf5 {[%clk 0:01:40.2]}
21. Rd1 {[%clk 0:00:35.7]} 21... Bc5 {[%clk 0:01:38.8]} 22. Qb3 {[%clk
0:00:23.7]} 22... e4 {[%clk 0:01:37.2]} 23. d6+ {[%clk 0:00:20]} 23... Kh8
{[%clk 0:01:36.7]} 24. dxc7 {[%clk 0:00:20]} 24... exf3+ {[%clk 0:01:36.1]} 25.
gxf3 {[%clk 0:00:16.8]} 25... Rfe8+ {[%clk 0:01:31.9]} 26. Kd2 {[%clk
0:00:14.7]} 26... Rad8+ {[%clk 0:01:31.9]} 27. Kc1 {[%clk 0:00:11]} 27... Rxd1+
{[%clk 0:01:29.7]} 28. Kxd1 {[%clk 0:00:11.2]} 28... Qd7+ {[%clk 0:01:24.5]} 29.
Bd3 {[%clk 0:00:07.1]} 29... Qxc7 {[%clk 0:01:23.1]} 30. Rg1 {[%clk 0:00:04.9]}
30... Bxf2 {[%clk 0:01:15.4]} 31. Rg6 {[%clk 0:00:04.7]} 31... Re1+ {[%clk
0:01:10.1]} 0-1

[Event "Early-Titled-Tuesday-Blitz-February-06-2024"]
[Site "Chess.com"]
[Date "2024.02.06"]
[Round "8"]
[White "h4parah5"]
[Black "Jospem"]
[Result "1/2-1/2"]
[WhiteElo "2940"]
[BlackElo "3058"]
[TimeControl "180+1"]
[EndTime "9:27:16 PST"]
[Termination "Game drawn by agreement"]

1. e4 {[%clk 0:03:00.9]} 1... e5 {[%clk 0:02:58.9]} 2. Nf3 {[%clk 0:03:01.3]}
2... Nc6 {[%clk 0:02:59.5]} 3. Bb5 {[%clk 0:03:01.4]} 3... a6 {[%clk 0:03:00.1]}
4. Ba4 {[%clk 0:03:02]} 4... Nf6 {[%clk 0:03:00.7]} 5. O-O {[%clk 0:03:02.5]}
5... Be7 {[%clk 0:03:01.1]} 6. Re1 {[%clk 0:03:02.4]} 6... b5 {[%clk 0:03:01.6]}
7. Bb3 {[%clk 0:03:02.7]} 7... d6 {[%clk 0:03:02.5]} 8. c3 {[%clk 0:03:02.7]}
8... O-O {[%clk 0:03:03.2]} 9. h3 {[%clk 0:03:03.1]} 9... Be6 {[%clk 0:03:03.8]}
10. Bxe6 {[%clk 0:03:02.2]} 10... fxe6 {[%clk 0:03:04.7]} 11. d4 {[%clk
0:03:02.3]} 11... Qd7 {[%clk 0:03:03.3]} 12. dxe5 {[%clk 0:02:58.6]} 12... Nxe5
{[%clk 0:03:04.2]} 13. Nxe5 {[%clk 0:02:58.4]} 13... dxe5 {[%clk 0:03:05.1]} 14.
Qxd7 {[%clk 0:02:58.6]} 14... Nxd7 {[%clk 0:03:06]} 15. Be3 {[%clk 0:02:57.5]}
15... Nc5 {[%clk 0:02:53]} 16. Nd2 {[%clk 0:02:55.8]} 16... Nd3 {[%clk
0:02:26.7]} 17. Reb1 {[%clk 0:02:54]} 17... Bc5 {[%clk 0:02:26.6]} 18. Bxc5
{[%clk 0:02:51.5]} 18... Nxc5 {[%clk 0:02:27.5]} 19. Nf3 {[%clk 0:02:31.5]}
19... Nxe4 {[%clk 0:02:09.7]} 20. Re1 {[%clk 0:02:30.5]} 20... Nc5 {[%clk
0:02:10.1]} 21. Nxe5 {[%clk 0:02:28.3]} 21... Rad8 {[%clk 0:02:03.2]} 22. Rad1
{[%clk 0:02:24.2]} 22... Na4 {[%clk 0:01:54.6]} 23. Rxd8 {[%clk 0:01:48.5]}
23... Rxd8 {[%clk 0:01:55.5]} 24. Re2 {[%clk 0:01:48.9]} 24... Rd6 {[%clk
0:01:46.4]} 25. c4 {[%clk 0:01:44.5]} 25... b4 {[%clk 0:01:30.5]} 26. f4 {[%clk
0:01:37.6]} 26... Rd1+ {[%clk 0:01:00.4]} 27. Kf2 {[%clk 0:01:37]} 27... Ra1
{[%clk 0:01:00.8]} 28. Rd2 {[%clk 0:01:18.8]} 28... h5 {[%clk 0:00:40.9]} 29.
Nc6 {[%clk 0:00:37.2]} 29... Rxa2 {[%clk 0:00:34.9]} 30. Nxb4 {[%clk 0:00:37]}
30... Rxb2 {[%clk 0:00:35.2]} 31. Rxb2 {[%clk 0:00:37.1]} 31... Nxb2 {[%clk
0:00:36.1]} 32. Nxa6 {[%clk 0:00:37.2]} 32... Nxc4 {[%clk 0:00:35.5]} 33. Nxc7
{[%clk 0:00:36.9]} 33... Kf7 {[%clk 0:00:36]} 1/2-1/2

[Event "Early-Titled-Tuesday-Blitz-February-06-2024"]
[Site "Chess.com"]
[Date "2024.02.06"]
[Round "8"]
[White "KhazhatulyAlikhan"]
[Black "ChainedDowntohell"]
[Result "0-1"]
[WhiteElo "2403"]
[BlackElo "2551"]
[TimeControl "180+1"]
[EndTime "9:27:23 PST"]
[Termination "ChainedDowntohell won by checkmate"]

1. e4 {[%clk 0:02:53.1]} 1... c5 {[%clk 0:02:57.3]} 2. Nf3 {[%clk 0:02:53]} 2...
Nc6 {[%clk 0:02:54.7]} 3. d4 {[%clk 0:02:48.7]} 3... cxd4 {[%clk 0:02:53.8]} 4.
Nxd4 {[%clk 0:02:49.6]} 4... g6 {[%clk 0:02:54.4]} 5. c4 {[%clk 0:02:49.2]} 5...
Bg7 {[%clk 0:02:53.5]} 6. Nc2 {[%clk 0:02:48.7]} 6... e6 {[%clk 0:02:49.8]} 7.
Be2 {[%clk 0:02:46.9]} 7... Nge7 {[%clk 0:02:49.2]} 8. O-O {[%clk 0:02:45.3]}
8... O-O {[%clk 0:02:49.1]} 9. Nc3 {[%clk 0:02:44.3]} 9... f5 {[%clk 0:02:47.9]}
10. exf5 {[%clk 0:02:38.7]} 10... Nxf5 {[%clk 0:02:46.1]} 11. Ne4 {[%clk
0:02:25.9]} 11... d5 {[%clk 0:02:44.4]} 12. cxd5 {[%clk 0:02:26]} 12... exd5
{[%clk 0:02:43.9]} 13. Bg5 {[%clk 0:02:24.4]} 13... Qd7 {[%clk 0:02:23.1]} 14.
Nc3 {[%clk 0:02:12.5]} 14... h6 {[%clk 0:02:01.7]} 15. Bf4 {[%clk 0:01:47.8]}
15... d4 {[%clk 0:01:55.7]} 16. Bc4+ {[%clk 0:01:43.9]} 16... Kh7 {[%clk
0:01:55.2]} 17. Ne4 {[%clk 0:01:39.6]} 17... b6 {[%clk 0:01:46.9]} 18. Qd3
{[%clk 0:01:10.2]} 18... Bb7 {[%clk 0:01:43.6]} 19. Rad1 {[%clk 0:01:09.9]}
19... Rad8 {[%clk 0:01:41.3]} 20. Qh3 {[%clk 0:01:08.1]} 20... Rde8 {[%clk
0:00:52.5]} 21. Ng5+ {[%clk 0:01:02.4]} 21... Kh8 {[%clk 0:00:52.3]} 22. Rfe1
{[%clk 0:01:01.8]} 22... d3 {[%clk 0:00:41.9]} 23. Rxd3 {[%clk 0:00:33.5]} 23...
Ncd4 {[%clk 0:00:25.6]} 24. Nxd4 {[%clk 0:00:26.2]} 24... Rxe1# {[%clk
0:00:24.7]} 0-1